Workbook

Sheet A
N3: Reiseregning (fra 01.01.17) | V3: Reisenummer
H4: Etter og fornavn | S4: Fødselsnr. | V4: Ansattnr
H5: Privatadresse | Q5: Postnr. | S5: Poststed | V5: Klient
H6: Stilling | Q6: Bankkontonummer | V6: Firmakode
H7: Virksomhet | Q7: Avd/tj.sted | T7: Skattekommune | X7: Trekk % | AA7: Test på dato
H8: Regulativ | R8: Region | T8: Dato | U8: Kl. | W8: =IF(AND(AC28=1,AC34=10),"Har ikke krav på komp.tillegg",IF(AND(AC28>1,AC35=20),"Antall komp.till. er for høyt","")) ->  | AA8: =IF(AND(T9<>"",T10<>""),-1,1) -> 1 | AB8: Verdien 1 dersom fra og tildato er tomme
H9: Reisemål | S9: Utreise | V9: Ant. Kostdøgn | W9: =IF(AA18<0,"Oppgitt antall kostdøgn er for høyt","") ->  | AA9: =IF(OR($T$9<42005,$T$9>42369),0,1) -> 0 | AB9: hvis 1 er utreise dato dato innen 2015
H10: Reiseårsak | S10: Retur | V10: =IF(AA8=1,0,IF(T9>T10,"Sjekk dato",T10-T9+AA15)) -> 0 | W10: =IF(AA8<>1,IF(AND(AA11<2,AA11>0),"Satser for reise er fra 2015",""),"") ->  | AA10: =IF(OR($T$10<42005,$T$10>42369),0,1) -> 0 | AB10: hvis 1 er returreise innen 2015
H11: Reiseutlegg / godtgjøringer | Q11: Antall | R11: Sats | S11: Beløp | T11: Konto | U11: Koststed | V11: K-elem.4 | W11: K-elem.5 | X11: K-elem.6 | Y11: K-elem.7 | AA11: =SUM(AA9:AA10) -> 0 | AB11: hvis 2 er utreise og retur innen 2015
K12: 1041 | L12: OVERFØRT FRA BAKSIDEN | S12: =IF(B!M39=0,0,B!M39) -> 0
H13: Kostgodtgjøring uten overnatting, ulegitimert | K13: 1048/1085 | L13: Innland | R13: =IF(AND(Q13<>0,M13<>""),VLOOKUP(M13,'C'!C8:F10,4),"") ->  | S13: =IF(AND(Q13<>0,M13<>""),+Q13*R13,0) -> 0 | AA13: Beregner kostdøgn | AB13: =T10-T9 -> 0 | AC13: 1
K14: 1042 | L14: Utl. 6-12 timer | R14: =IF(M14<>0,((VLOOKUP(M14,'C'!$B$55:$D$219,3,FALSE))*2/3),"") ->  | S14: =IF(M14<>0,+Q14*R14,0) -> 0 | AA14: =IF(AB13>0,(U10-U9)*24,0) -> 0 | AB14: Antall timer inn i nytt døgn
K15: 1052 | L15: Utl. > 12 timer | R15: =IF(M15<>0,((VLOOKUP(M15,'C'!$B$55:$D$219,3,FALSE))),"") ->  | S15: =IF(M15<>0,+Q15*R15,0) -> 0 | AA15: =IF($AA$14>=6,1,0) -> 0 | AB15: Hvis 6 timer inn i nytt døgn, beregnes nytt kostdøgn
H16: Kostgodtgjøring ved overnatting, ulegitimert | K16: =+'C'!A12 -> 1087 | L16: Hotell innland | R16: =IF(Q16<>0,'C'!$F$12,"") ->  | S16: =IF(Q16<>0,+Q16*R16,0) -> 0 | AA16: =V10 -> 0 | AB16: Max. Beregnede kost døgn
K17: 1076/1075 | L17: Pensj. innland * | M17: =IF($Q$17>0,'C'!F15*$Q17+Q43,"") ->  | N17: =IF($Q17>0,(('C'!$F$12-'C'!$F$15)*$Q17)+R43,"") ->  | R17: =IF(Q17<>0,'C'!F12,"") ->  | S17: 0 | AA17: =SUM(Q13:Q22) -> 0 | AB17: sum oppgitte kostdøgn
K18: 1073/1075 | L18: Hyb./br./pr innl* | M18: =IF($Q$18>0,('C'!F16*$Q18)+Q44,"") ->  | N18: =IF($Q18>0,(('C'!$F$12-'C'!$F$16)*$Q18)+R44,"") ->  | R18: =IF(Q18<>0,'C'!F12,"") ->  | S18: 0 | AA18: =IF(Q13=1,0,AA16-AA17) -> 0 | AB18: Hvis negativt tall, Oppgitt for mange kostdøgn, skriver feilmelding
K19: 1052 | L19: Hotell utland | R19: =IF(M19<>0,VLOOKUP(M19,'C'!$B$55:$D$219,3,FALSE),"") ->  | S19: 0 | AA19: =IF($AA$14>=12,1,0) -> 0 | AB19: Hvis 12 timer inn i nytt døgn, beregnes nytt kostdøgn for kompetansetillegg
K20: 1052 | L20: Hotell utland | R20: =IF(M20<>0,VLOOKUP(M20,'C'!$B$55:$D$219,3,FALSE),"") ->  | S20: 0 | AA20: Hvis reisen varer mindre enn et døgn utbetales kompensasjonstillegg etter 12 timer
H21: =IF(Q21>0,315*Q21,0) -> 0 | I21: =IF(Q21>0,S21-H21,0) -> 0 | K21: 1076/1075 | L21: Pensj.utl. * | R21: =IF(M21<>0,VLOOKUP(M21,'C'!$B$55:$D$219,3,FALSE),"") ->  | S21: 0 | AA21: Komp. Tillegg < 1 døgn | AC21: kommentar | AD21: Hvis 12 timer inn i nytt døgn, får en nytt kompensasjonstilleggsdøgn ved reise under 12 timer
H22: =IF(Q22>0,205*Q22,0) -> 0 | I22: =IF(Q22>0,S22-H22,0) -> 0 | K22: 1073/1075 | L22: Hy./br./pr. utl *. | R22: =IF(M22<>0,VLOOKUP(M22,'C'!$B$55:$D$219,3,FALSE),"") ->  | S22: 0 | AA22: =T9 -> 00:00:00 | AB22: Startdato | AC22: =IF(AND(AC28=1,AC27>=12),1,0) -> 0 | AD22: Reisen varer under et døgn, men mer enn 12 timer = 1 (0 dersom mindre enn 12 timer)
L23: Innland: utgår fom 2015 | R23: =IF(Q23<>0,'C'!F6,"") ->  | S23: 0 | AC23: =IF(AND(#REF!=1,AC28>=12),1,0) -> 
H24: Nattillegg, uleg. | K24: =+'C'!A17 -> 1053 | L24: Innland | R24: =IF(Q24<>0,'C'!F17,"") ->  | S24: 0 | AA24: =$U$9*24 -> 0 | AB24: start tidspunkt | AC24: =AA25-AA24 -> 0 | AD24: Antall timer mellom start-tidspukt og slutt-tidspunkt
H25: Komp. Tillegg | K25: =+'C'!A13 -> 1214 | L25: Utland* | N25: =IF(Q25>0,IF(AC28=1,AC22,AC32),"") ->  | R25: =IF(Q25<>0,'C'!F13,"") ->  | S25: 0 | AA25: =$U$10*24 -> 0 | AB25: slutttidspunkt
H26: Eget skyssmiddel. Spesifiser reisen på baksiden. | K26: ='C'!A28 -> 1094/1096 | L26: Bil <10.000 km | M26: ='C'!C28*Q26 -> 0 | N26: ='C'!D28*Q26 -> 0 | Q26: =B!F18 -> 0 | R26: ='C'!F28 -> 4.1 | S26: =IF(Q26<>0,Q26*R26,0) -> 0
K27: 1202/1206 | L27: Bil utland <10.000 km | M27: ='C'!C30*Q27 -> 0 | N27: ='C'!D30*Q27 -> 0 | Q27: =B!I18 -> 0 | R27: ='C'!F30 -> 4.1 | S27: =IF(Q27<>0,Q27*R27,0) -> 0 | AA27: =IF(AC27>=12,"Ja","Nei") -> Nei | AB27: sum | AC27: =SUM(AC24:AC25) -> 0 | AD27: mer enn 12 timer totalt?
K28: ='C'!A32 -> 1093/1095 | L28: EL-bil <10.000 km | M28: ='C'!C32*Q28 -> 0 | N28: ='C'!D32*Q28 -> 0 | Q28: =B!F20 -> 0 | R28: ='C'!F32 -> 4.2 | S28: 0 | AB28: reisen varer antall døgn : | AC28: =$T$10-$T$9 -> 0
K29: 1203/1225 | L29: EL-bil utland <10.000 km | M29: ='C'!C34*Q29 -> 0 | N29: ='C'!D34*Q29 -> 0 | Q29: =B!I20 -> 0 | R29: ='C'!F34 -> 4.1 | S29: 0 | AB29: sum reg. døgn utland : | AC29: =SUM(Q19:Q22) -> 0 | AD29: Hvis reisen over et døgn utbetales kompensasjonstillegg etter 12 timer inn i nytt døgn
K30: ='C'!A27 -> 1045 | L30: Passasjertillegg (navn i merknadsfelt) | Q30: =B!I22 -> 0 | R30: =IF(Q30<>0,'C'!F27,"") ->  | S30: 0 | AB30: Registrerte komp. Tillegg | AC30: =Q25 -> 0
Q31: =B!F22 -> 0 | R31: =IF(Q31>0,'C'!F36,"") ->  | S31: 0 | AB31: Beregnet komp.till under et døgn | AC31: =AC22 -> 0 | AD31: =IF(Q25>AC31,"Bruker har ikke krav på komp.tillegg for reise under 1 døgn") -> FALSE
K32: =IF(AND(M32<>"",Q32<>""),VLOOKUP(M32,B!$E$71:$P$79,6,FALSE)) -> FALSE | L32: Annet | Q32: =SUMIF(B!G4:H14,M32,B!I4:I14) -> 0 | R32: =IF(AND(M32<>"",Q32<>0),VLOOKUP(M32,B!$E$71:$I$79,2,FALSE),"") ->  | S32: 0 | AB32: Beregnet komp.till over et døgn | AC32: =IF(AC29<=$V$10,(AC29-1)+AA19,0) -> -1 | AD32: =IF(AC32=0,"Bruker har registrert for mange døgn utland enn startdato/sluttdato for reise tilsier","ok") -> ok | AE32: DENNE MÅ SJEKKES - BLIR FEIL HVIS BRUKER OPPGIR FEILE DØGN
B33: sjekk at denne tabellen fungerer | H33: Opphold utover 28 døgn | K33: 1269 | L33: Kostgodtgjøring innland | R33: =IF(Q33<>0,'C'!$F$20,"") ->  | S33: 0
K34: 1058 | L34: Kostgodtgj. Utland | R34: =IF(M34<>0,VLOOKUP(M34,'C'!$B$55:$D$219,3,FALSE)*0.75,"") ->  | S34: =IF(M34<>0,+Q34*R34,0) -> 0 | AB34: Feilmelding komp tillegg under et døgn : | AC34: =IF($Q$25>0,IF(AC22>=1,0,10)) -> FALSE | AD34: =IF(AC34=10, "Feil - 10 Bruker har registrert komp tillegg men har ikke krav på under 1 døgn","") -> 
B35: Fratrekk for kost - satser | R35: =IF(Q35<>0,'C'!F17*0.75,"") ->  | S35: 0 | AB35: Feilmelding komp tillegg over et døgn : | AC35: =IF(AND($Q$25>0,$AC$29>=1),IF(AC32-Q25<0,20,0)) -> FALSE | AD35: =IF(AC35=20, "Feil 20 - Bruker har registrert komp tillegg men har registrert flere enn han har krav på","") -> 
B36: % utland | C36: 0.1 | D36: 0.4 | E36: 0.5 | H36: Andre godtgj. | S36: 0
B37: % Innland | C37: 0.2 | D37: 0.3 | E37: 0.5 | H37: TIL SAMMEN | R37: =SUM($S$43:$S$44,$S$47:$S$48) -> 0 | S37: =IF(SUM(S12:S36)<>0,SUM(S12:S36),0) -> 0
B38: Sats | C38: Frokost | D38: Lunch | E38: Middag | F38: Sum | H38: Trekk for kost | L38: Frokost | M38: Lunsj | N38: Middag | Q38: Trekkfri | R38: Trekkpl.
A39: =L13 -> Innland | B39: =IF(AND($Q$13>0,$M$13<>""),VLOOKUP($M$13,'C'!$C$8:$F$9,4),0) -> 0 | C39: =IF(AND(B39<>0,L39>0),($B39*$C$37)*L39,0) -> 0 | D39: =IF(M39>0,($B39*D37),0) -> 0 | E39: =IF(N39>0,($B39*E37),0) -> 0 | F39: =SUM(C39:E39) -> 0 | H39: Uten overnatting | K39: 1085/1048 | S39: =-F39 -> 0
A40: =L14 -> Utl. 6-12 timer | B40: =IF(AND($Q$14<>0,$M$14<>""),VLOOKUP(M14,'C'!$B$55:$D$219,3,FALSE)*2/3,0) -> 0 | C40: =IF(L40>0,($B40*C$36),0) -> 0 | D40: 0 | E40: 0 | F40: =SUM(C40:E40) -> 0 | H40: Utland 6-12 timer | K40: 1042 | S40: 0
A41: Utl. > 12 timer | B41: =IF(AND($Q$15<>0,$M$15<>""),VLOOKUP(M15,'C'!$B$55:$D$219,3,FALSE),0) -> 0 | C41: 0 | D41: 0 | E41: 0 | F41: =SUM(C41:E41) -> 0 | H41: Utland > 12 timer | K41: 1052 | S41: =-F41 -> 0
A42: Hotell innland | B42: =IF(Q16<>"",'C'!$F$12,0) -> 0 | C42: =IF(AND(L42>0,$B42<>0),($B42*C$37)*L42,0) -> 0 | D42: =IF(AND(M42>0,$B42<>0),($B42*D$37)*M42,0) -> 0 | E42: =IF(AND(N42>0,$B42<>""),($B42*E$37)*N42,0) -> 0 | F42: =SUM(C42:E42) -> 0 | H42: Hotell innland | K42: 1087 | S42: 0
A43: Pensj. innland * | B43: =IF(Q17<>"",'C'!$F$12,0) -> 0 | C43: =IF(AND(L43>0,$B43<>""),($B43*C$37)*L43,0) -> 0 | D43: =IF(AND(M43>0,$B43<>""),($B43*D$37)*M43,0) -> 0 | E43: =IF(AND(N43>0,$B43<>""),($B43*E$37)*N43,0) -> 0 | F43: =SUM(C43:E43) -> 0 | H43: Pensjonat innl.* | K43: 1076/1075 | Q43: =$S43*Q70 -> 0 | R43: =$S43*R70 -> 0 | S43: 0
A44: Hyb./br./pr innl* | B44: =IF(Q18<>"",'C'!$F$12,0) -> 0 | C44: 0 | D44: 0 | E44: 0 | F44: 0 | H44: Hyb./br./pr. innl.* | K44: 1073/1075 | Q44: =$S44*Q71 -> 0 | R44: =$S44*R71 -> 0 | S44: 0
A45: Hotell utland | B45: =IF(AND($Q$19<>0,$M$19<>""),VLOOKUP(M19,'C'!$B$55:$D$219,3,FALSE),0) -> 0 | C45: =IF(AND(L45>0,C$36<>""),($B45*C$36)*L45,0) -> 0 | D45: =IF(AND(M45>0,D$36<>""),($B45*D$36)*M45,0) -> 0 | E45: =IF(AND(N45>0,E$36<>""),($B45*E$36)*N45,0) -> 0 | F45: =SUM(C45:E45) -> 0 | H45: Hotell utland | K45: 1052 | S45: 0
A46: Hotell utland | B46: =IF(AND($Q$20<>0,$M$20<>""),VLOOKUP(M20,'C'!$B$55:$D$219,3,FALSE),0) -> 0 | C46: =IF(AND(L46>0,C$36<>""),($B46*C$36)*L46,0) -> 0 | D46: =IF(AND(M46>0,D$36<>""),($B46*D$36)*M46,0) -> 0 | E46: =IF(AND(N46>0,E$36<>""),($B46*E$36)*N46,0) -> 0 | F46: =SUM(C46:E46) -> 0 | H46: Hotell utland | K46: 1052 | S46: =-F46 -> 0
A47: Pensj.utl. * | B47: =IF(AND($Q$21<>0,$M$21<>""),VLOOKUP(M21,'C'!$B$55:$D$219,3,FALSE),0) -> 0 | C47: =IF(AND(L47>0,C$36<>0),($B47*C$36)*L47,0) -> 0 | D47: 0 | E47: 0 | F47: 0 | H47: Pensjonat.utl.* | K47: 1076/1075 | Q47: =IF(S47<>0,$S47*Q78,"") ->  | R47: =IF(S47<>0,$S47*R78,"") ->  | S47: 0
A48: Hy./br./pr. utl *. | B48: =IF(AND($Q$22<>0,$M$22<>""),VLOOKUP(M22,'C'!$B$55:$D$219,3,FALSE),0) -> 0 | C48: 0 | D48: 0 | E48: 0 | F48: 0 | H48: Hybel./br./pr.utl. * | K48: 1073/1075 | Q48: =IF(S48<>0,$S48*Q79,"") ->  | R48: =IF(S48<>0,$S48*R79,"") ->  | S48: 0
B49: =IF(Q23<>"",'C'!$F$12,0) -> 0 | C49: =IF(AND(L49>0,$B49<>""),($B49*C$37)*L49,0) -> 0 | D49: =IF(AND(M49>0,$B49<>""),($B49*D$37)*M49,0) -> 0 | E49: =IF(AND(N49>0,$B49<>""),($B49*E$37)*N49,0) -> 0 | F49: 0 | H49: Sum reiseoppgjør | L49: =SUM(L39:L48) -> 0 | M49: =SUM(M39:M48) -> 0 | N49: 0 | O49: 0 | P49: 0 | S49: =IF(SUM(S37:S48)<>0,SUM(S37:S48),0) -> 0
H50: Annet trekk
H51: Reiseforskudd utbet.sted
H52: Totalsum (Trekkpliktige ytelser er merket med *) | S52: =IF(SUM(S49:S51)<>0,SUM(S49:S51),0) -> 0
H53: Utstederens underskrift | M53: Jeg samtykker i at ev. skyldig beløp kan trekkes i lønn | V53: Satsene og beregningene er tatt med for å gi en omtrentlig oversikt over hva som vil bli utbetalt. Det er de satsene og beregningene som ligger i lønnssystemet som vil bli brukt ved utbetalingen av reiseregningen. Utbetalingsbeløpet kan bli mindre pga. forskuddstrekk.
H55: Kontroll | L55: Dato | M55: Sign.
H57: Budsjett- disponering | L57: Dato | M57: Sign.
X59: 2016-01-01
I62: REGION | L62: ULEGITIMERT | U62: ANDRE FREMKOMSTMIDLER | Y62: REGULATIV
L63: KOSTGODTGJØRELSE | Y63: Tjenestereise
I64: Tromsø | L64: MED OVERNATTING | W64: ='C'!F39 -> 4 | Y64: Yrkesreise
W65: ='C'!#REF! ->  | Y65: Arbeidsreise
L66: 6-12 timer | N66: 8 - 12 timer | R66: SAP | W66: ='C'!F43 -> 2
L67: over 12 timer | N67: over 12 timer | W67: ='C'!F45 -> 1.7
W68: ='C'!#REF! -> 
K69: ='C'!F12 -> 733 | L69: Kostgodtjørelse | M69: Skattefri | N69: Skattepliktig | Q69: % skattefri | R69: % skpliktig | S69: Total | W69: ='C'!F50 -> 0
K70: =SUM(M70:N70) -> 733 | L70: =L17 -> Pensj. innland * | M70: ='C'!F15 -> 315 | N70: =$K$69-M70 -> 418 | Q70: =M70/K70 -> 0.4297407913 | R70: =N70/K70 -> 0.5702592087 | S70: =SUM(Q70:R70) -> 1 | W70: ='C'!F51 -> 0
K71: =SUM(M71:N71) -> 733 | L71: =L18 -> Hyb./br./pr innl* | M71: ='C'!F16 -> 205 | N71: =$K$69-M71 -> 528 | Q71: =M71/K71 -> 0.2796725784 | R71: =N71/K71 -> 0.7203274216 | S71: =SUM(Q71:R71) -> 1 | W71: ='C'!F52 -> 0
K72: 0.2 | L72: Frokost pensjonat | M72: =$M$70*K72 -> 63 | N72: =$N$70*K72 -> 83.6 | Q72: =SUM(M72:P72) -> 146.6 | W72: ='C'!F53 -> 0
K73: 0.3 | L73: Lunch pensjonat | M73: =$M$70*K73 -> 94.5 | N73: =$N$70*K73 -> 125.4 | Q73: =SUM(M73:P73) -> 219.9
K74: 0.5 | L74: Middag pensjonat | M74: 157.5 | N74: 209 | Q74: 366.5 | R74: =SUM(Q72:Q74) -> 733
K75: 0.2 | L75: Frokost brakke | M75: =$M$71*K75 -> 41 | N75: =$N$71*K75 -> 105.6 | Q75: 146.6 | W75: ='C'!F56 -> 0
K76: 0.3 | L76: Lunch brakke | M76: =$M$71*K76 -> 61.5 | N76: =$N$71*K76 -> 158.4 | Q76: 219.9
K77: 0.5 | L77: Middag brakke | M77: 102.5 | N77: 264 | Q77: 366.5 | R77: =SUM(Q75:Q77) -> 733
K78: =R21 ->  | L78: =L21 -> Pensj.utl. * | M78: =M70 -> 315 | N78: =IF(K78="","",K78-M78) ->  | Q78: =IF(K78="","",M78/K78) ->  | R78: =IF(K78="","",N78/K78) ->  | S78: =SUM(Q78:R78) -> 0
K79: =R22 ->  | L79: =L22 -> Hy./br./pr. utl *. | M79: =M71 -> 205 | N79: =IF(K79="","",K79-M79) ->  | Q79: =IF(K79="","",M79/K79) ->  | R79: =IF(K79="","",N79/K79) ->  | S79: =SUM(Q79:R79) -> 0

Sheet B
A2: Reisespesifikasjon | J2: Reiseutlegg
A3: Dato | B3: Klokke slett | C3: Fra sted | E3: Til sted | F3: Klokke slett | G3: Type transportmiddel | I3: Km | J3: Valuta | K3: Beløp i valuta (el. NOK) | L3: Kurs | M3: Beløp | N3: Melding | P3: Sats | Q3: Skatte-fritt | R3: Skatte-pliktig | S3: Km | T3: Sum km godtgj. | U3: Kontr | V3: Km
M4: =IF(P4>0,T4,IF(AND(K4<>0,L4<>0),K4*L4,K4)) -> 0 | N4: =IF(AND(U4>4,I4=""),"Fyll ut ant. km","") ->  | P4: =IF(G4="",0,VLOOKUP($G4,$E$62:$F$79,2,FALSE)) -> 0 | Q4: =IF(H4="",0,VLOOKUP($G4,$E$62:$F$79,2,FALSE)) -> 0 | R4: 0 | S4: =IF(U4>4,I4,0) -> 0 | T4: =P4*S4 -> 0 | U4: =IF(G4="",0,VLOOKUP($G4,$E$62:$I$79,5,FALSE)) -> 0 | V4: =IF(U4>4,I4,0) -> 0
M5: =IF(P5>0,T5,IF(AND(K5<>0,L5<>0),K5*L5,K5)) -> 0 | N5: =IF(AND(U5>4,I5=""),"Fyll ut ant. km","") ->  | P5: =IF(G5="",0,VLOOKUP($G5,$E$62:$F$79,2,FALSE)) -> 0 | Q5: =IF(H5="",0,VLOOKUP($G5,$E$62:$F$79,2,FALSE)) -> 0 | R5: =IF(I5="",0,VLOOKUP($G5,$E$62:$F$79,2,FALSE)) -> 0 | S5: =IF(U5>4,I5,0) -> 0 | T5: =P5*S5 -> 0 | U5: =IF(G5="",0,VLOOKUP($G5,$E$62:$I$79,5,FALSE)) -> 0 | V5: =IF(U5>4,I5,0) -> 0
M6: 0 | P6: 0 | Q6: 0 | R6: 0 | S6: 0 | T6: 0 | U6: 0 | V6: 0
M7: 0 | P7: 0 | Q7: 0 | R7: 0 | S7: 0 | T7: 0 | U7: 0 | V7: 0
M8: 0 | P8: 0 | Q8: 0 | R8: 0 | S8: 0 | T8: 0 | U8: 0 | V8: 0
M9: 0 | P9: 0 | Q9: 0 | R9: 0 | S9: 0 | T9: 0 | U9: 0 | V9: 0
M10: 0 | P10: 0 | Q10: 0 | R10: 0 | S10: 0 | T10: 0 | U10: 0 | V10: 0
M11: 0 | P11: 0 | Q11: 0 | R11: 0 | S11: 0 | T11: 0 | U11: 0 | V11: 0
M12: 0 | P12: 0 | Q12: 0 | R12: 0 | S12: 0 | T12: 0 | U12: 0 | V12: 0
M13: 0 | P13: 0 | Q13: 0 | R13: 0 | S13: 0 | T13: 0 | U13: 0 | V13: 0
M14: 0 | P14: 0 | Q14: 0 | R14: 0 | S14: 0 | T14: 0 | U14: 0 | V14: 0
L15: Delsum (ekskl. km godtgj.) | M15: =IF(S15>0,SUM(M4:M14)-T15,SUM(M4:M14)) -> 0 | S15: =SUM(S4:S14) -> 0 | T15: =SUM(T4:T14) -> 0 | U15: =SUM(M4:M14) -> 0 | V15: =SUM(V4:V14) -> 0
A16: Dato: | C16: Hjemmel for bruk av bil gitt av: | T16: Sum km godtgj. | U16: =T15 -> 0
T17: Sum (eksk. km godtgj.) | U17: =U15-U16 -> 0
D18: Sum km bil <10.000 km | F18: =SUMIF($G$4:$G$14,E67,$I$4:$I$14) -> 0 | G18: Sum km bil utland <10.000 km | I18: =SUMIF($G$4:$G$14,E71,$I$4:$I$14) -> 0 | J18: Sum km Moped <125ccm | M18: =SUMIF($G$4:$G$14,E76,$I$4:$I$14) -> 0
D19: Sum km bil >10.000 km | F19: =SUMIF($G$4:$G$14,E68,$I$4:$I$14) -> 0 | G19: Sum km bil utland >10.000 km | I19: =SUMIF($G$4:$G$14,E72,$I$4:$I$14) -> 0 | J19: Sum km Motorsykkel >125 ccm | M19: =SUMIF($G$4:$G$14,E77,$I$4:$I$14) -> 0 | T19: Sum annet | U19: =SUM(M18:M21) -> 0
D20: Sum km EL-bil <10.000 km | F20: =SUMIF($G$4:$G$14,E69,$I$4:$I$14) -> 0 | G20: Sum km EL-bil utland <10.000 km | I20: =SUMIF($G$4:$G$14,E73,$I$4:$I$14) -> 0 | J20: Sum km Båt < 50 hk | M20: =SUMIF($G$4:$G$14,E78,$I$4:$I$14) -> 0 | T20: Sum utland | U20: =SUM(I18:I21) -> 0
D21: Sum km EL-bil > 10.000 km | F21: =SUMIF($G$4:$G$14,E70,$I$4:$I$14) -> 0 | G21: Sum km EL-bil utland >10.000 km | I21: =SUMIF($G$4:$G$14,E74,$I$4:$I$14) -> 0 | J21: Sum km Båt > 50hk | M21: =SUMIF($G$4:$G$14,E79,$I$4:$I$14) -> 0 | T21: Totalt | U21: =SUM(U19:U20) -> 0
D22: Sum km bil Hjem-arbeid | F22: =SUMIF($G$4:$G$14,E75,$I$4:$I$14) -> 0 | G22: Sum passasjertillegg | I22: =SUMIF($G$4:$G$14,E66,$I$4:$I$14) -> 0 | O22: =SUMIF($G$4:$G$14,#REF!,$I$4:$I$14) -> 0
A24: Utlegg til overnatting, mat, bompenger m.m. | J24: Valuta eller NOK
A25: Dato | B25: Spesifikasjon (Dersom du bor på hotell, skal navn og adr. oppgis) | I25: Papir- kvittering | J25: Valuta | K25: Beløp i valuta eller NOK | L25: Kurs | M25: Beløp
M26: =IF(AND(K26<>0,L26<>0),K26*L26,K26) -> 0
M27: =IF(AND(K27<>0,L27<>0),K27*L27,K27) -> 0
M28: 0
M29: 0
M30: 0
M31: 0
M32: 0
M33: 0
M34: 0
M35: 0
M36: 0
L37: Delsum | M37: =IF(SUM(M26:M36)<>0,SUM(M26:M36),0) -> 0
D39: Reiseutlegg - overføres automatisk til forsiden | L39: Sum | M39: =IF(OR(M15<>0,M37<>0,M48<>0),M15+M37+M48,0) -> 0
A42: Betalt av arbeidsgiver (beløp må oppgis som negativt tall, da dette kommer til fratrekk på reiseregning) | J42: Fremmed valuta
A43: Dato | B43: Spesifikasjon | J43: Valuta | K43: Beløp i valuta eller NOK | L43: Kurs | M43: Beløp
M44: =IF(AND(K44<>0,L44<>0),K44*L44,K44) -> 0
M45: =IF(AND(K45<>0,L45<>0),K45*L45,K45) -> 0
M46: =IF(AND(K46<>0,L46<>0),K46*L46,K46) -> 0
A48: Overnatting (Navn på og sted for hotell, pensjonat e.a. (ikke privat).) | L48: Delsum | M48: =SUM(M44:M46) -> 0
A49: Dersom navn og sted på overnattingsstedet ikke oppgis, vil det bli trukket skatt for det beløpet som overstiger Skattedirektoratets forskuddssatser for hybel/brakke med kokemuligheter.
A52: Merknader (Navn på passasjerer må oppgis her.)
A61: Tidsintervall | B61: Kontroll | C61: JA/NEI | D61: Kontroll | E61: Plukkliste transp.type | F61: Sats bil | G61: Skattefritt | H61: Skattepliktig | I61: Kontroll | J61: TT-kode
D62: 1 | E62: Taxi | F62: 0 | I62: 1
A63: 5-9 timer | C63: Ja | D63: 2 | E63: Fly | F63: 0 | I63: 2
A64: 9-12 timer | C64: Nei | D64: 3 | E64: Tog | F64: 0 | I64: 3
A65: over 12 timer | D65: 4 | E65: Buss | F65: 0 | I65: 4
D66: 5 | E66: Passasjer | F66: ='C'!F27 -> 1 | I66: 5
D67: 6 | E67: Bil <10.000km | F67: ='C'!F28 -> 4.1 | G67: ='C'!C28 -> 3.5 | H67: ='C'!$D28 -> 0.6 | I67: 6 | J67: ='C'!A28 -> 1094/1096
D68: 7 | E68: Bil >10.000km | F68: ='C'!$F$29 -> 3.45 | G68: ='C'!C29 -> 3.45 | H68: ='C'!$D29 -> 0 | I68: 7 | J68: ='C'!A29 -> 1097
D69: 8 | E69: EL-bil <10.000km | F69: ='C'!F32 -> 4.2 | G69: ='C'!C32 -> 3.5 | H69: ='C'!D32 -> 0.7 | I69: 8 | J69: ='C'!A32 -> 1093/1095
D70: 9 | E70: EL-bil >10.000km | F70: ='C'!F33 -> 4.2 | G70: ='C'!C33 -> 3.5 | H70: ='C'!D33 -> 0.7 | I70: 9 | J70: ='C'!A33 -> 1221/1223
D71: 10 | E71: Bil utland <10.000km | F71: ='C'!F30 -> 4.1 | G71: ='C'!C30 -> 3.5 | H71: ='C'!D30 -> 0.6 | I71: 10 | J71: ='C'!A30 -> 1202/1206
D72: 11 | E72: Bil utland >10.000km | F72: ='C'!F31 -> 3.45 | G72: ='C'!C31 -> 3.45 | H72: ='C'!D31 -> 0 | I72: 11 | J72: ='C'!A31 -> 1208
D73: 12 | E73: EL-bil utland <10.000km | F73: ='C'!F34 -> 4.1 | G73: ='C'!C34 -> 3.5 | H73: ='C'!D34 -> 0.6 | I73: 12 | J73: ='C'!A34 -> 1203/1225
D74: 13 | E74: El_bil utland >10.000km | F74: ='C'!F35 -> 3.45 | G74: ='C'!C35 -> 3.45 | H74: ='C'!D35 -> 0 | I74: 13 | J74: ='C'!A35 -> 1222
D75: 14 | E75: Bil hjem-arbeid | F75: ='C'!F36 -> 1.6 | G75: ='C'!C36 -> 1.6 | H75: ='C'!D36 -> 0 | I75: 14 | J75: ='C'!A36 -> 1094
D76: 15 | E76: Moped <125 ccm | F76: ='C'!F37 -> 1.6 | G76: ='C'!C37 -> 1.6 | H76: ='C'!D37 -> 0 | I76: 15 | J76: ='C'!A37 -> 1061
D77: 16 | E77: Motorsykkel >125 ccm | F77: ='C'!F38 -> 2.95 | G77: ='C'!C38 -> 2.95 | H77: ='C'!D38 -> 0 | I77: 16 | J77: ='C'!A38 -> 1063
D78: 17 | E78: Båt <50hk | F78: ='C'!F39 -> 4 | G78: ='C'!C39 -> 4 | H78: ='C'!D39 -> 0 | I78: 17 | J78: ='C'!A39 -> 1067
D79: 18 | E79: Båt >50hk | F79: ='C'!F40 -> 7.5 | G79: ='C'!C40 -> 7.5 | H79: ='C'!D40 -> 0 | I79: 18 | J79: ='C'!A40 -> 1068

Sheet C
A5: TT-koder | B5: SATSTYPE | F5: Sats | G5: Maks % av godtgjørelse | H5: Kommentarer, endringer fra 2014 til 2016
A6: utgår | B6: Administrativ forpleining (utgått 2015) | F6: 0 | H6: Adminstrativ forpleining innland utgår fom 2015
A7: utgår | B7: Administrativ forpleining utland (utgått 2016) | F7: 0 | H7: Adminstrativ forpleining utland (kr 100 - fom 2015, utgår fra 1/1-2016)
A8: 1048 | B8: Innland, kostgodtgj. u/overnatting | C8: 6-12 timer | F8: 289 | H8: Innenlands kostgodgjøring endret til 6 til 12 timer i 2015, ny sats 2017
A9: 1085 | B9: Innland, kostgodgj. u/overnatting | C9: over 12 timer | F9: 537 | H9: over 12 timer, ny sats 2017
A10: utgår | B10: Innland, kostgodgj. u/overnatting (utgått 2015) | F10: 0 | H10: Kostgodtgjøring innland 9-12 timer utgår i 2015
B11: Grense for legitimerte overnattingsutgifter, innland | F11: 1800
A12: 1087 | B12: Innland, over 12 kostgodtgj m/overnatting | C12: over 12 timer | F12: 733 | H12: ny sats 2017
A13: 1214 | B13: Kompensasjonstillegg, utland | F13: 491 | H13: Per 1/1-2017 er dette kr. 491,-
A15: 1076 | B15: Trekkfri kostgodtgjørelse for pensjonat | F15: 315 | H15: Her er kun kr. 315 (fra 2017) skattefritt, resten må det skattes av (gjelder både innland og utland)
A16: 1073 | B16: Trekkfri kostgodtgjørelse hybel/brakke/priv | F16: 205 | H16: Her er kun kr. 205 (fra 2017) skattefritt, resten må det skattes av (gjelder både innland og utland)
A17: 1053 | B17: Innland, ulegitimertnattillegg | F17: 430
B18: Innland, kostgodtgjøring beordring 0-28 døgn | F18: 733 | H18: Dette brukes ikke, men UiB bruker også kost utover 28 døgn (75%) - feltarbeid
B19: Innland, ulegitimert overnatting beordring 0-28 døgn | F19: 430 | H19: Dette brukes ikke, men UiB bruker også natt-tillegg utover 28 døgn (90%)-feltarbeid
A20: 1269 | B20: Innland, kostgodtgjørelse beording over 28 døgn | F20: 190 | H20: 9.3 Særavtale for reiser utenlands for statens regning, (kostgodtgjørelse reduseres med 25% av det landet de landet de er i)
B21: Trekk, frokost innland dagreise | F21: 0.2
B22: Trekk, lunsj, innland dagreise | F22: 0.3
B23: Trekk, middag, innland dagreise | F23: 0.5
B24: Trekk prosent frokost innland | F24: 0.2
B25: Trekk prosent lunsj innland | F25: 0.3
B26: Trekk prosent middag innland | F26: 0.5
A27: 1045 | B27: Passasjertillegg | C27: Skattefritt | D27: Skattepliktig | F27: 1
A28: 1094/1096 | B28: Bil km-godtgjørelse 0-10000 km | C28: 3.5 | D28: 0.6 | F28: 4.1
A29: 1097 | B29: Bil km-godtgjørelse over 10000 km * | C29: 3.45 | D29: 0 | F29: 3.45
A30: 1202/1206 | B30: Bil utland: kilometergodtgjørelse < 10.000 | C30: 3.5 | D30: 0.6 | F30: 4.1
A31: 1208 | B31: Bil utland: kilometergodtgjørelse > 10.000 | C31: 3.45 | F31: 3.45
A32: 1093/1095 | B32: EL-bil km.godtgj. 0-10.000 km | C32: 3.5 | D32: 0.7 | F32: 4.2
A33: 1221/1223 | B33: EL-bil km.godtgj. > 10.000 km | C33: 3.5 | D33: 0.7 | F33: 4.2
A34: 1203/1225 | B34: EL-bil utland km.godtgj. 0-10.000 km | C34: 3.5 | D34: 0.6 | F34: 4.1
A35: 1222 | B35: EL-bil utland km.godtgj. > 10.000 km | C35: 3.45 | D35: 0 | F35: 3.45
A36: 1094 | B36: Bil hjem - arbeid | C36: =F36 -> 1.6 | D36: 0 | F36: 1.6 | H36: Brukkes ikke
A37: 1061 | B37: Moped < 125 ccm km. Godtgjørelse | C37: =F37 -> 1.6 | D37: 0 | F37: 1.6
A38: 1063 | B38: Motorsykkel >125 ccm km.godtgj. | C38: =F38 -> 2.95 | D38: 0 | F38: 2.95
A39: 1067 | B39: Båt < 50 hk km.godtgj. | C39: =F39 -> 4 | D39: 0 | F39: 4
A40: 1068 | B40: Båt > 50 hk km.godtgj. | C40: =F40 -> 7.5 | D40: 0 | F40: 7.5
A41: 1200/1205 | B41: Bil kilometergodtgjørelse i Tromsø 0-10.000 | C41: 3.8 | D41: 0.4 | F41: 4.2
A42: 1201/1224 | B42: Bil kilometergodtgjørelse Tromsø > 10.000 | C42: 3.45 | D42: 0.1 | F42: 3.55
A43: 1066 | B43: Andre fremkomstmidler km.godtgj. | C43: =F43 -> 2 | F43: 2
A44: 1065 | B44: Tillegg: Skogs- og anleggsvei | F44: 1
B45: Tillegg: Snøscooter | F45: 1.7 | H45: utgår 2016
A46: 1064 | B46: Tillegg: Tilhenger | F46: 7.5
A47: 1062 | B47: Tillegg | F47: 1
E50: 1065
E51: 1062
E52: 1066
I54: Pensjon utland | L54: Hybel/brakke/privat innkv. Utland
A55: 1 | C55: Makssatser Natt | D55: Kost | I55: TT-kode | J55: Skattefritt | K55: Skattepliktig | L55: TT-kode | M55: Skattefritt | N55: Skattepliktig
A56: 117 | B56: Europa: | I56: 1076/1075 | L56: 1073/1075
A57: 118 | B57: Albania | C57: 1520 | D57: 500 | I57: 1076/1075 | J57: 307 | K57: =D57-J57 -> 193 | L57: 1073/1075 | M57: 200 | N57: =D57-M57 -> 300
A58: 119 | B58: Belgia | C58: 2100 | D58: 900 | I58: 1076/1075 | J58: 307 | K58: =D58-J58 -> 593 | L58: 1073/1075 | M58: 200 | N58: =D58-M58 -> 700
A59: 120 | B59: Bosnia og Hercegovina | C59: 800 | D59: 430 | I59: 1076/1075 | J59: 307 | K59: =D59-J59 -> 123 | L59: 1073/1075 | M59: 200 | N59: =D59-M59 -> 230
A60: 121 | B60: Bulgaria | C60: 900 | D60: 420 | E60: Ny sats per 1/1-2016 | I60: 1076/1075 | J60: 307 | K60: 113 | L60: 1073/1075 | M60: 200 | N60: 220
A61: 122 | B61: Danmark | C61: 1700 | D61: 800 | I61: 1076/1075 | J61: 307 | K61: 493 | L61: 1073/1075 | M61: 200 | N61: 600
A62: 123 | B62: København | C62: 1750 | D62: 930 | I62: 1076/1075 | J62: 307 | K62: 623 | L62: 1073/1075 | M62: 200 | N62: 730
A63: 124 | B63: Estland | C63: 1000 | D63: 600 | I63: 1076/1075 | J63: 307 | K63: 293 | L63: 1073/1075 | M63: 200 | N63: 400
A64: 125 | B64: Finland | C64: 1500 | D64: 760 | E64: Ny sats per 1/1-2016 | I64: 1076/1075 | J64: 307 | K64: 453 | L64: 1073/1075 | M64: 200 | N64: 560
A65: 126 | B65: Frankrike | C65: 1600 | D65: 780 | I65: 1076/1075 | J65: 307 | K65: 473 | L65: 1073/1075 | M65: 200 | N65: 580
A66: 127 | B66: Paris | C66: 2800 | D66: 900 | I66: 1076/1075 | J66: 307 | K66: 593 | L66: 1073/1075 | M66: 200 | N66: 700
A67: 128 | B67: Hellas | C67: 1100 | D67: 630 | E67: Ny sats per 1/1-2016 | I67: 1076/1075 | J67: 307 | K67: 323 | L67: 1073/1075 | M67: 200 | N67: 430
A68: 129 | B68: Hviterussland | C68: 1200 | D68: 400 | I68: 1076/1075 | J68: 307 | K68: 93 | L68: 1073/1075 | M68: 200 | N68: 200
A69: 130 | B69: Irland | C69: 1700 | D69: 850 | I69: 1076/1075 | J69: 307 | K69: 543 | L69: 1073/1075 | M69: 200 | N69: 650
A70: 131 | B70: Island | C70: 2100 | D70: 850 | I70: 1076/1075 | J70: 307 | K70: 543 | L70: 1073/1075 | M70: 200 | N70: 650
B71: Italia | C71: 2100 | D71: 900 | I71: 1076/1075 | J71: 307 | K71: 593 | L71: 1073/1075 | M71: 200 | N71: 700
B72: Kosovo | C72: 700 | D72: 360 | I72: 1076/1075 | J72: 307 | K72: 53 | L72: 1073/1075 | M72: 200 | N72: 160
A73: 132 | B73: Kroatia | C73: 1750 | D73: 740 | E73: Var tidligere 840, nå redusert til 740? | I73: 1076/1075 | J73: 307 | K73: 433 | L73: 1073/1075 | M73: 200 | N73: 540
B74: Kypros | C74: 1800 | D74: 700 | I74: 1076/1075 | J74: 307 | K74: 393 | L74: 1073/1075 | M74: 200 | N74: 500
A75: 133 | B75: Latvia | C75: 1000 | D75: 650 | I75: 1076/1075 | J75: 307 | K75: 343 | L75: 1073/1075 | M75: 200 | N75: 450
A76: 134 | B76: Liechtenstein | C76: 1900 | D76: 1200 | I76: 1076/1075 | J76: 307 | K76: 893 | L76: 1073/1075 | M76: 200 | N76: 1000
A77: 135 | B77: Litauen | C77: 1000 | D77: 490 | I77: 1076/1075 | J77: 307 | K77: =D77-J77 -> 183 | L77: 1073/1075 | M77: 200 | N77: =D77-M77 -> 290
A78: 136 | B78: Luxembourg | C78: 1600 | D78: 800 | I78: 1076/1075 | J78: 307 | K78: 493 | L78: 1073/1075 | M78: 200 | N78: 600
A79: 137 | B79: Makedonia | C79: 1100 | D79: 540 | E79: Var tidligere 610 nå redusert til540? | I79: 1076/1075 | J79: 307 | K79: 233 | L79: 1073/1075 | M79: 200 | N79: 340
A80: 138 | B80: Malta | C80: 1650 | D80: 700 | I80: 1076/1075 | J80: 307 | K80: 393 | L80: 1073/1075 | M80: 200 | N80: 500
A81: 139 | B81: Moldova | C81: 1400 | D81: 380 | E81: Var tidligere 650 nå redusert til 380? | I81: 1076/1075 | J81: 307 | K81: 73 | L81: 1073/1075 | M81: 200 | N81: 180
A82: 140 | B82: Monaco | C82: 2800 | D82: 1100 | I82: 1076/1075 | J82: 307 | K82: 793 | L82: 1073/1075 | M82: 200 | N82: 900
A83: 141 | B83: Montenegro | C83: 1300 | D83: 500 | I83: 1076/1075 | J83: 307 | K83: 193 | L83: 1073/1075 | M83: 200 | N83: 300
A84: 142 | B84: Nederland | C84: 1500 | D84: 650 | I84: 1076/1075 | J84: 307 | K84: 343 | L84: 1073/1075 | M84: 200 | N84: 450
A85: 143 | B85: Polen | C85: 1900 | D85: 600 | I85: 1076/1075 | J85: 307 | K85: 293 | L85: 1073/1075 | M85: 200 | N85: 400
A86: 144 | B86: Portugal | C86: 2500 | D86: 700 | E86: Var tidligere 880 nå redusert til 700 | I86: 1076/1075 | J86: 307 | K86: 393 | L86: 1073/1075 | M86: 200 | N86: 500
A87: 145 | B87: Romania | C87: 1500 | D87: 550 | E87: Var tidligere 820 nå redusert | I87: 1076/1075 | J87: 307 | K87: 243 | L87: 1073/1075 | M87: 200 | N87: 350
A88: 146 | B88: Russland | C88: 1600 | D88: 650 | E88: Var tidligere 710 nå redusert | I88: 1076/1075 | J88: 307 | K88: 343 | L88: 1073/1075 | M88: 200 | N88: 450
A89: 147 | B89: Moskva | C89: 3200 | D89: 980 | E89: Var tidligere 1400 nå redusert | I89: 1076/1075 | J89: 307 | K89: 673 | L89: 1073/1075 | M89: 200 | N89: 780
A90: 148 | B90: St. Petersburg | C90: 1600 | D90: 810 | E90: Var tidligere 950 nå redusert | I90: 1076/1075 | J90: 307 | K90: 503 | L90: 1073/1075 | M90: 200 | N90: 610
A91: 149 | B91: Serbia | C91: 1500 | D91: 630 | E91: Var tidligere 650 nå redusert | I91: 1076/1075 | J91: 307 | K91: 323 | L91: 1073/1075 | M91: 200 | N91: 430
A92: 151 | B92: Slovakia | C92: 1000 | D92: 600 | I92: 1076/1075 | J92: 307 | K92: 293 | L92: 1073/1075 | M92: 200 | N92: 400
A93: 152 | B93: Slovenia | C93: 1900 | D93: 510 | E93: Ny sats per 1/1-2016 | I93: 1076/1075 | J93: 307 | K93: 203 | L93: 1073/1075 | M93: 200 | N93: 310
A94: 153 | B94: Spania | C94: 1700 | D94: 880 | E94: Var tidligere 900 nå redusert | I94: 1076/1075 | J94: 307 | K94: 573 | L94: 1073/1075 | M94: 200 | N94: 680
A95: 154 | B95: Storbritannia | C95: 1400 | D95: 680 | E95: Ny sats per 1/1-2016 | I95: 1076/1075 | J95: 307 | K95: 373 | L95: 1073/1075 | M95: 200 | N95: 480
A96: 155 | B96: London | C96: 2400 | D96: 1100 | I96: 1076/1075 | J96: 307 | K96: 793 | L96: 1073/1075 | M96: 200 | N96: 900
A97: 156 | B97: Sveits | C97: 1450 | D97: 1050 | I97: 1076/1075 | J97: 307 | K97: 743 | L97: 1073/1075 | M97: 200 | N97: 850
A98: 157 | B98: Genève | C98: 4000 | D98: 1050 | I98: 1076/1075 | J98: 307 | K98: 743 | L98: 1073/1075 | M98: 200 | N98: 850
A99: 158 | B99: Zürich | C99: 3000 | D99: 1200 | I99: 1076/1075 | J99: 307 | K99: 893 | L99: 1073/1075 | M99: 200 | N99: 1000
A100: 159 | B100: Sverige | C100: 1900 | D100: 750 | I100: 1076/1075 | J100: 307 | K100: 443 | L100: 1073/1075 | M100: 200 | N100: 550
A101: 160 | B101: Tjekkiske republikk | C101: 1800 | D101: 550 | I101: 1076/1075 | J101: 307 | K101: 243 | L101: 1073/1075 | M101: 200 | N101: 350
A102: 161 | B102: Tyskland | C102: 1900 | D102: 750 | I102: 1076/1075 | J102: 307 | K102: 443 | L102: 1073/1075 | M102: 200 | N102: 550
A103: 162 | B103: Berlin | C103: 2250 | D103: 900 | I103: 1076/1075 | J103: 307 | K103: 593 | L103: 1073/1075 | M103: 200 | N103: 700
A104: 163 | B104: Ukraina | C104: 1400 | D104: 530 | I104: 1076/1075 | J104: 307 | K104: 223 | L104: 1073/1075 | M104: 200 | N104: 330
A105: 164 | B105: Ungarn | C105: 2000 | D105: 640 | E105: Var tidligere 650 nå redusert | I105: 1076/1075 | J105: 307 | K105: 333 | L105: 1073/1075 | M105: 200 | N105: 440
A106: 165 | B106: Østerrike | C106: 1400 | D106: 760 | I106: 1076/1075 | J106: 307 | K106: 453 | L106: 1073/1075 | M106: 200 | N106: 560
A107: 166 | B107: Wien | C107: 1900 | D107: 900 | I107: 1076/1075 | J107: 307 | K107: 593 | L107: 1073/1075 | M107: 200 | N107: 700
B108: Afrika: | I108: 1076/1075 | J108: 307 | K108: -307 | L108: 1073/1075 | M108: 200 | N108: -200
B109: Algerie | C109: 1900 | D109: 700 | E109: Var tidligere 800 nå redusert | I109: 1076/1075 | J109: 307 | K109: 393 | L109: 1073/1075 | M109: 200 | N109: 500
A110: 3 | B110: Angola | C110: 2650 | D110: 1270 | E110: Ny sats per 1/1-2016 | I110: 1076/1075 | J110: 307 | K110: 963 | L110: 1073/1075 | M110: 200 | N110: 1070
A111: 4 | B111: Benin | C111: 1550 | D111: 490 | E111: Ny sats per 1/1-2016 | I111: 1076/1075 | J111: 307 | K111: 183 | L111: 1073/1075 | M111: 200 | N111: 290
A112: 5 | B112: Botswana | C112: 1500 | D112: 450 | I112: 1076/1075 | J112: 307 | K112: 143 | L112: 1073/1075 | M112: 200 | N112: 250
A113: 6 | B113: Burundi | C113: 1000 | D113: 460 | I113: 1076/1075 | J113: 307 | K113: 153 | L113: 1073/1075 | M113: 200 | N113: 260
B114: Egypt | C114: 2400 | D114: 650 | E114: Var tidligere 680 nå redusert | I114: 1076/1075 | J114: 307 | K114: 343 | L114: 1073/1075 | M114: 200 | N114: 450
A115: 7 | B115: Elfenbenskysten | C115: 1620 | D115: 700 | I115: 1076/1075 | J115: 307 | K115: 393 | L115: 1073/1075 | M115: 200 | N115: 500
A116: 8 | B116: Eritrea | C116: 1050 | D116: 700 | I116: 1076/1075 | J116: 307 | K116: 393 | L116: 1073/1075 | M116: 200 | N116: 500
A117: 9 | B117: Etiopia | C117: 2000 | D117: 450 | I117: 1076/1075 | J117: 307 | K117: 143 | L117: 1073/1075 | M117: 200 | N117: 250
A118: 10 | B118: Ghana | C118: 2300 | D118: 500 | I118: 1076/1075 | J118: 307 | K118: 193 | L118: 1073/1075 | M118: 200 | N118: 300
A119: 11 | B119: Kamerun | C119: 1800 | D119: 560 | I119: 1076/1075 | J119: 307 | K119: 253 | L119: 1073/1075 | M119: 200 | N119: 360
A120: 12 | B120: Kenya | C120: 1600 | D120: 580 | E120: Ny sats per 1/1-2016 | I120: 1076/1075 | J120: 307 | K120: 273 | L120: 1073/1075 | M120: 200 | N120: 380
A121: 13 | B121: Lesotho | C121: 1000 | D121: 350 | I121: 1076/1075 | J121: 307 | K121: 43 | L121: 1073/1075 | M121: 200 | N121: 150
A122: 14 | B122: Madagaskar | C122: 900 | D122: 350 | I122: 1076/1075 | J122: 307 | K122: 43 | L122: 1073/1075 | M122: 200 | N122: 150
A123: 15 | B123: Malawi | C123: 1100 | D123: 360 | E123: Ny sats per 1/1-2016 | I123: 1076/1075 | J123: 307 | K123: 53 | L123: 1073/1075 | M123: 200 | N123: 160
A124: 16 | B124: Marokko | C124: 1800 | D124: 670 | E124: Var tidligere 800 nå redusert | I124: 1076/1075 | J124: 307 | K124: 363 | L124: 1073/1075 | M124: 200 | N124: 470
A125: 17 | B125: Mauritius | C125: 1150 | D125: 480 | E125: Ny sats per 1/1-2016 | I125: 1076/1075 | J125: 307 | K125: 173 | L125: 1073/1075 | M125: 200 | N125: 280
A126: 18 | B126: Mosambik | C126: 2100 | D126: 690 | I126: 1076/1075 | J126: 307 | K126: 383 | L126: 1073/1075 | M126: 200 | N126: 490
A127: 19 | B127: Namibia | C127: 1350 | D127: 360 | I127: 1076/1075 | J127: 307 | K127: 53 | L127: 1073/1075 | M127: 200 | N127: 160
A128: 20 | B128: Nigeria | C128: 3200 | D128: 980 | I128: 1076/1075 | J128: 307 | K128: 673 | L128: 1073/1075 | M128: 200 | N128: 780
A129: 21 | B129: Seychellene | C129: 2500 | D129: 810 | E129: Var tidligere 1000 nå redusert | I129: 1076/1075 | J129: 307 | K129: 503 | L129: 1073/1075 | M129: 200 | N129: 610
A130: 22 | B130: Sudan | C130: 1750 | D130: 800 | I130: 1076/1075 | J130: 307 | K130: 493 | L130: 1073/1075 | M130: 200 | N130: 600
A131: 23 | B131: Swasiland | C131: 1100 | D131: 350 | I131: 1076/1075 | J131: 307 | K131: 43 | L131: 1073/1075 | M131: 200 | N131: 150
A132: 24 | B132: Sør-Afrika | C132: 2500 | D132: 540 | E132: Var tidligere 1000 nå redusert | I132: 1076/1075 | J132: 307 | K132: 233 | L132: 1073/1075 | M132: 200 | N132: 340
B133: Sør-Sudan | C133: 1900 | D133: 580 | E133: Ny sats per 1/1-2016 | I133: 1076/1075 | J133: 307 | K133: 273 | L133: 1073/1075 | M133: 200 | N133: 380
A134: 25 | B134: Tanzania | C134: 1950 | D134: 650 | I134: 1076/1075 | J134: 307 | K134: 343 | L134: 1073/1075 | M134: 200 | N134: 450
A135: 26 | B135: Togo | C135: 1000 | D135: 500 | E135: Ny sats per 1/1-2016 | I135: 1076/1075 | J135: 307 | K135: 193 | L135: 1073/1075 | M135: 200 | N135: 300
A136: 27 | B136: Zambia | C136: 1350 | D136: 600 | I136: 1076/1075 | J136: 307 | K136: 293 | L136: 1073/1075 | M136: 200 | N136: 400
A137: 28 | B137: Zimbabwe | C137: 1300 | D137: 590 | E137: Ny sats per 1/1-2016 | I137: 1076/1075 | J137: 307 | K137: 283 | L137: 1073/1075 | M137: 200 | N137: 390
A138: 29 | B138: Øvrige områder | C138: 1700 | D138: 580 | I138: 1076/1075 | J138: 307 | K138: 273 | L138: 1073/1075 | M138: 200 | N138: 380
A139: 30 | B139: Amerika: | I139: 1076/1075 | J139: 307 | K139: -307 | L139: 1073/1075 | M139: 200 | N139: -200
A140: 31 | B140: Argentina | C140: 1600 | D140: 520 | E140: Ny sats per 1/1-2016 | I140: 1076/1075 | J140: 307 | K140: 213 | L140: 1073/1075 | M140: 200 | N140: 320
A141: 32 | B141: Bahamas | C141: 2000 | D141: 940 | E141: Ny sats per 1/1-2016 | I141: 1076/1075 | J141: 307 | K141: =D141-J141 -> 633 | L141: 1073/1075 | M141: 200 | N141: =D141-M141 -> 740
B142: Barbados | C142: 1450 | D142: 860 | E142: Ny sats per 1/1-2016 | I142: 1076/1075 | J142: 307 | K142: 553 | L142: 1073/1075 | M142: 200 | N142: 660
A143: 33 | B143: Bolivia | C143: 650 | D143: 340 | E143: Ny sats per 1/1-2016 | I143: 1076/1075 | J143: 307 | K143: 33 | L143: 1073/1075 | M143: 200 | N143: 140
A144: 34 | B144: Brasil | C144: 2200 | D144: 650 | I144: 1076/1075 | J144: 307 | K144: 343 | L144: 1073/1075 | M144: 200 | N144: 450
A145: 35 | B145: Rio de Janeiro | C145: 3000 | D145: 820 | E145: Var tidligere 1050 nå redusert | I145: 1076/1075 | J145: 307 | K145: 513 | L145: 1073/1075 | M145: 200 | N145: 620
A146: 36 | B146: Canada | C146: 2300 | D146: 930 | I146: 1076/1075 | J146: 307 | K146: 623 | L146: 1073/1075 | M146: 200 | N146: 730
A147: 37 | B147: Chile | C147: 1500 | D147: 720 | E147: Ny sats per 1/1-2016 | I147: 1076/1075 | J147: 307 | K147: 413 | L147: 1073/1075 | M147: 200 | N147: 520
A148: 38 | B148: Colombia | C148: 2000 | D148: 500 | I148: 1076/1075 | J148: 307 | K148: 193 | L148: 1073/1075 | M148: 200 | N148: 300
A149: 39 | B149: Costa Rica | C149: 1000 | D149: 550 | I149: 1076/1075 | J149: 307 | K149: 243 | L149: 1073/1075 | M149: 200 | N149: 350
A150: 40 | B150: Cuba | C150: 1100 | D150: 560 | E150: Ny sats per 1/1-2016 | I150: 1076/1075 | J150: 307 | K150: 253 | L150: 1073/1075 | M150: 200 | N150: 360
A151: 42 | B151: El Salvador | C151: 1000 | D151: 440 | I151: 1076/1075 | J151: 307 | K151: 133 | L151: 1073/1075 | M151: 200 | N151: 240
A152: 44 | B152: Guatemala | C152: 1100 | D152: 550 | E152: Ny sats per 1/1-2016 | I152: 1076/1075 | J152: 307 | K152: 243 | L152: 1073/1075 | M152: 200 | N152: 350
A153: 45 | B153: Guyana | C153: 1200 | D153: 560 | E153: Ny sats per 1/1-2016 | I153: 1076/1075 | J153: 307 | K153: 253 | L153: 1073/1075 | M153: 200 | N153: 360
A154: 47 | B154: Honduras | C154: 1200 | D154: 400 | I154: 1076/1075 | J154: 307 | K154: 93 | L154: 1073/1075 | M154: 200 | N154: 200
B155: Jamaica | C155: 1200 | D155: 610 | E155: Ny sats per 1/1-2016 | I155: 1076/1075 | J155: 307 | K155: 303 | L155: 1073/1075 | M155: 200 | N155: 410
A156: 48 | B156: Mexico | C156: 2200 | D156: 680 | E156: Var tidligere 950 nå redusert | I156: 1076/1075 | J156: 307 | K156: 373 | L156: 1073/1075 | M156: 200 | N156: 480
A157: 49 | B157: Nicaragua | C157: 1200 | D157: 460 | I157: 1076/1075 | J157: 307 | K157: 153 | L157: 1073/1075 | M157: 200 | N157: 260
A158: 50 | B158: Panama | C158: 1400 | D158: 500 | I158: 1076/1075 | J158: 307 | K158: 193 | L158: 1073/1075 | M158: 200 | N158: 300
A159: 51 | B159: Paraguay | C159: 1200 | D159: 500 | I159: 1076/1075 | J159: 307 | K159: 193 | L159: 1073/1075 | M159: 200 | N159: 300
A160: 52 | B160: Peru | C160: 1500 | D160: 750 | I160: 1076/1075 | J160: 307 | K160: 443 | L160: 1073/1075 | M160: 200 | N160: 550
A161: 53 | B161: Puerto Rico | C161: 1200 | D161: 700 | E161: Ny sats per 1/1-2016 | I161: 1076/1075 | J161: 307 | K161: 393 | L161: 1073/1075 | M161: 200 | N161: 500
A162: 54 | B162: Surinam | C162: 1000 | D162: 550 | E162: Ny sats per 1/1-2016 | I162: 1076/1075 | J162: 307 | K162: 243 | L162: 1073/1075 | M162: 200 | N162: 350
A163: 55 | B163: Uruguay | C163: 1350 | D163: 600 | I163: 1076/1075 | J163: 307 | K163: 293 | L163: 1073/1075 | M163: 200 | N163: 400
A164: 56 | B164: USA | C164: 1750 | D164: 700 | I164: 1076/1075 | J164: 307 | K164: 393 | L164: 1073/1075 | M164: 200 | N164: 500
A165: 57 | B165: New York | C165: 3000 | D165: 950 | I165: 1076/1075 | J165: 307 | K165: 643 | L165: 1073/1075 | M165: 200 | N165: 750
B166: San Francisco | C166: 2000 | D166: 1000 | I166: 1076/1075 | J166: 307 | K166: 693 | L166: 1073/1075 | M166: 200 | N166: 800
A167: 58 | B167: Washington DC | C167: 3100 | D167: 1000 | I167: 1076/1075 | J167: 307 | K167: 693 | L167: 1073/1075 | M167: 200 | N167: 800
A168: 59 | B168: Venezuela | C168: 2400 | D168: 1600 | E168: Ny sats per 1/1-2016 | I168: 1076/1075 | J168: 307 | K168: 1293 | L168: 1073/1075 | M168: 200 | N168: 1400
A169: 60 | B169: Øvrige områder | C169: 1700 | D169: 710 | E169: Ny sats per 1/1-2016 | I169: 1076/1075 | J169: 307 | K169: 403 | L169: 1073/1075 | M169: 200 | N169: 510
A170: 61 | B170: Asia: | I170: 1076/1075 | J170: 307 | K170: -307 | L170: 1073/1075 | M170: 200 | N170: -200
A171: 62 | B171: Afghanistan | C171: 2300 | D171: 500 | I171: 1076/1075 | J171: 307 | K171: 193 | L171: 1073/1075 | M171: 200 | N171: 300
A172: 63 | B172: Armenia | C172: 1400 | D172: 500 | I172: 1076/1075 | J172: 307 | K172: 193 | L172: 1073/1075 | M172: 200 | N172: 300
A173: 64 | B173: Aserbajdsjan | C173: 2650 | D173: 750 | I173: 1076/1075 | J173: 307 | K173: 443 | L173: 1073/1075 | M173: 200 | N173: 550
A174: 65 | B174: Bahrain | C174: 1650 | D174: 800 | I174: 1076/1075 | J174: 307 | K174: 493 | L174: 1073/1075 | M174: 200 | N174: 600
A175: 66 | B175: Bangladesh | C175: 3000 | D175: 530 | E175: Ny sats per 1/1-2016 | I175: 1076/1075 | J175: 307 | K175: 223 | L175: 1073/1075 | M175: 200 | N175: 330
A176: 67 | B176: Brunei | C176: 1000 | D176: 400 | I176: 1076/1075 | J176: 307 | K176: 93 | L176: 1073/1075 | M176: 200 | N176: 200
A177: 69 | B177: Filippinene | C177: 2100 | D177: 700 | I177: 1076/1075 | J177: 307 | K177: 393 | L177: 1073/1075 | M177: 200 | N177: 500
A178: 70 | B178: Forente arabiske emirater | C178: 1700 | D178: 1000 | I178: 1076/1075 | J178: 307 | K178: 693 | L178: 1073/1075 | M178: 200 | N178: 800
A179: 71 | B179: Georgia | C179: 2200 | D179: 570 | E179: Var tidligere 650 nå redusert | I179: 1076/1075 | J179: 307 | K179: 263 | L179: 1073/1075 | M179: 200 | N179: 370
A180: 72 | B180: India | C180: 1700 | D180: 500 | I180: 1076/1075 | J180: 307 | K180: 193 | L180: 1073/1075 | M180: 200 | N180: 300
A181: 74 | B181: Indonesia | C181: 2600 | D181: 550 | I181: 1076/1075 | J181: 307 | K181: 243 | L181: 1073/1075 | M181: 200 | N181: 350
A182: 75 | B182: Iran | C182: 1600 | D182: 750 | I182: 1076/1075 | J182: 307 | K182: 443 | L182: 1073/1075 | M182: 200 | N182: 550
A183: 76 | B183: Israel | C183: 2900 | D183: 900 | I183: 1076/1075 | J183: 307 | K183: 593 | L183: 1073/1075 | M183: 200 | N183: 700
A184: 78 | B184: Japan | C184: 2200 | D184: 700 | I184: 1076/1075 | J184: 307 | K184: 393 | L184: 1073/1075 | M184: 200 | N184: 500
B185: Jemen | C185: 1200 | D185: 500 | I185: 1076/1075 | J185: 307 | K185: 193 | L185: 1073/1075 | M185: 200 | N185: 300
A186: 79 | B186: Jordan | C186: 2800 | D186: 1150 | E186: Var tidligere 1300 nå redusert | I186: 1076/1075 | J186: 307 | K186: 843 | L186: 1073/1075 | M186: 200 | N186: 950
A187: 80 | B187: Kambodsja | C187: 1650 | D187: 670 | E187: Var tidligere 800 nå redusert | I187: 1076/1075 | J187: 307 | K187: 363 | L187: 1073/1075 | M187: 200 | N187: 470
A188: 81 | B188: Kasakhstan | C188: 1750 | D188: 700 | I188: 1076/1075 | J188: 307 | K188: 393 | L188: 1073/1075 | M188: 200 | N188: 500
A189: 82 | B189: Kina | C189: 2000 | D189: 730 | I189: 1076/1075 | J189: 307 | K189: 423 | L189: 1073/1075 | M189: 200 | N189: 530
A190: 83 | B190: Hong Kong | C190: 3100 | D190: 1000 | I190: 1076/1075 | J190: 307 | K190: 693 | L190: 1073/1075 | M190: 200 | N190: 800
A191: 84 | B191: Shanghai | C191: 2400 | D191: 870 | I191: 1076/1075 | J191: 307 | K191: 563 | L191: 1073/1075 | M191: 200 | N191: 670
A192: 85 | B192: Kuwait | C192: 1700 | D192: 730 | E192: Ny sats per 1/1-2016 | I192: 1076/1075 | J192: 307 | K192: 423 | L192: 1073/1075 | M192: 200 | N192: 530
A193: 87 | B193: Laos | C193: 1500 | D193: 500 | I193: 1076/1075 | J193: 307 | K193: 193 | L193: 1073/1075 | M193: 200 | N193: 300
A194: 88 | B194: Libanon | C194: 2200 | D194: 890 | I194: 1076/1075 | J194: 307 | K194: 583 | L194: 1073/1075 | M194: 200 | N194: 690
A195: 89 | B195: Malaysia | C195: 1400 | D195: 600 | E195: Var tidligere 770 nå redusert | I195: 1076/1075 | J195: 307 | K195: 293 | L195: 1073/1075 | M195: 200 | N195: 400
A196: 90 | B196: Maldivene | C196: 3000 | D196: 660 | E196: Var tidligere 800 nå redusert | I196: 1076/1075 | J196: 307 | K196: 353 | L196: 1073/1075 | M196: 200 | N196: 460
A197: 91 | B197: Myanmar (Burma) | C197: 1700 | D197: 690 | E197: Var tidligere 750 nå redusert | I197: 1076/1075 | J197: 307 | K197: 383 | L197: 1073/1075 | M197: 200 | N197: 490
A198: 93 | B198: Nord-Korea | C198: 1000 | D198: 450 | I198: 1076/1075 | J198: 307 | K198: 143 | L198: 1073/1075 | M198: 200 | N198: 250
A199: 94 | B199: Oman | C199: 2700 | D199: 800 | I199: 1076/1075 | J199: 307 | K199: 493 | L199: 1073/1075 | M199: 200 | N199: 600
A200: 95 | B200: Pakistan | C200: 2100 | D200: 400 | I200: 1076/1075 | J200: 307 | K200: 93 | L200: 1073/1075 | M200: 200 | N200: 200
B201: Palestina | C201: 1400 | D201: 800 | I201: 1076/1075 | J201: 307 | K201: 493 | L201: 1073/1075 | M201: 200 | N201: 600
A202: 96 | B202: Qatar | C202: 1600 | D202: 730 | E202: Ny sats per 1/1-2016 | I202: 1076/1075 | J202: 307 | K202: 423 | L202: 1073/1075 | M202: 200 | N202: 530
A203: 97 | B203: Saudi-Arabia | C203: 2700 | D203: 890 | E203: Var tidligere 1000 nå redusert | I203: 1076/1075 | J203: 307 | K203: 583 | L203: 1073/1075 | M203: 200 | N203: 690
A204: 98 | B204: Singapore | C204: 3250 | D204: 800 | I204: 1076/1075 | J204: 307 | K204: 493 | L204: 1073/1075 | M204: 200 | N204: 600
A205: 99 | B205: Sri Lanka | C205: 1200 | D205: 410 | E205: Ny sats per 1/1-2016 | I205: 1076/1075 | J205: 307 | K205: =D205-J205 -> 103 | L205: 1073/1075 | M205: 200 | N205: =D205-M205 -> 210
A206: 101 | B206: Sør-Korea | C206: 2000 | D206: 1100 | I206: 1076/1075 | J206: 307 | K206: 793 | L206: 1073/1075 | M206: 200 | N206: 900
A207: 103 | B207: Taiwan | C207: 2700 | D207: 600 | I207: 1076/1075 | J207: 307 | K207: 293 | L207: 1073/1075 | M207: 200 | N207: 400
A208: 104 | B208: Thailand | C208: 1400 | D208: 700 | I208: 1076/1075 | J208: 307 | K208: 393 | L208: 1073/1075 | M208: 200 | N208: 500
... 27 more rows

Sheet D (hidden)

Sheet Info (hidden)
B3: Hvordan korrigere satser, ev. skattefrie beløp
A5: Beskyttelse | B5: Regneboken som ligger ute er beskyttet mot endring i låste felt
B6: Beskyttelsen må tas av (se makro for reiseregning)
A8: C-arket | B8: Alle satser som skal oppdateres korrigeres på side C (reiser, kjøregodtgjørelse mm)
B9: Alle formler henviser til sater i dette regnearket, så når det er oppdatert her skal det være oppdatert i hele regnearket
A11: B-arket | B11: Satser og formler for beregninger ligger også i B-arket
B12: Disse er skjult og må vises vha Vis-kommando
B13: Marker start og slutt på kolonner som er skjult, høyre-klikk og velg vis
B14: Beregner korrekt kjøregodkjørelse og plukklister for valg i listebokser
A16: Datavalidering | B16: Plukklistene er satt på vha Datavalidering
B17: Marker området hvor det står listebokser, Velg Data på filmenyen
B18: Da finner du verktøyet "Datavalidering" på dette båndet (se bilde)
A20: A-arket | B20: Dette arket inneholder også skjulte kolonner til venstre og høyre i skjemaet
B21: Disse er skjult og må vises vha Vis-kommando
B22: Beregner korrekt kostgodtgjørelse mm
A28: Før ark legges | B28: Sett på arkbeskyttelse
A29: på web | B29: Test at regnearket fungerer som det skal
